bitfinex/quotes_SOLUSD_20251019
["timestamp","ask_amount","ask_price","bid_price","bid_amount"]
[1760867083036,0.7,186.25,186.22,3.32887142]
[1760867083228,0.7,186.24,186.2,3.32887142]
[1760867083450,29.48,186.23,186.11,0.53731664]
[1760867083628,3.32887142,186.21,186.15,3.32887142]
[1760867083830,29.48,186.2,186.17,3.32887142]
[1760867084035,0.72,186.19,186.17,3.32887142]
[1760867084345,22.88,186.24,186.18,3.32887142]
[1760867084346,28.78,186.21,186.18,3.32887142]
[1760867084543,28.78,186.21,186.2,3.32887142]
[1760867084751,34.87037091,186.21,186.1,0.53734551]
[1760867084952,3.32887142,186.2,186.14,3.32887142]
[1760867085127,0.72,186.19,186.14,3.32887142]
[1760867085456,0.72,186.18,186.14,3.32887142]
[1760867085630,0.72,186.17,186.13,3.32887142]
[1760867085824,0.72,186.16,186.13,3.32887142]
[1760867086042,28.76,186.15,186.08,0.68]
[1760867086347,34.13201181,186.15,186.14,3.32887142]
[1760867086523,28.76,186.15,186.14,3.32887142]
[1760867087170,28.76,186.15,186.08,6.05378584]
[1760867087470,22.88,186.22,186.14,3.32887142]
[1760867087660,29.46,186.21,186.18,3.32887142]
[1760867087968,5.37056928,186.2,186.18,3.32887142]
[1760867088171,6.09056928,186.2,186.18,3.32887142]
[1760867088550,6.09056928,186.2,186.13,5.37248009]
[1760867088749,6.09056928,186.2,186.18,3.32887142]
[1760867089162,28.72,186.19,186.18,3.32887142]
[1760867089356,28.72,186.19,186.12,4.00887142]
[1760867089565,28.72,186.19,186.17,3.32887142]
[1760867089960,29.44,186.19,186.12,9.38168651]
[1760867090287,28.72,186.19,186.18,3.32887142]
[1760867090505,5.37028086,186.21,186.18,3.32887142]
[1760867090787,5.37028086,186.21,186.2,3.32887142]
[1760867090946,34.07028086,186.21,186.2,3.32887142]
[1760867091247,34.07028086,186.21,186.19,3.32887142]
[1760867091653,28.68,186.2,186.19,3.32887142]
[1760867091869,29.4,186.2,186.19,3.32887142]
[1760867092565,28.68,186.2,186.19,3.32887142]
[1760867092958,5.37028086,186.21,186.19,3.32887142]
[1760867093154,6.09028086,186.21,186.2,3.32887142]
[1760867093354,34.03028086,186.21,186.2,3.32887142]
[1760867093549,34.03028086,186.21,186.15,5.37201097]
[1760867093748,34.03028086,186.21,186.2,3.32887142]
[1760867094175,28.64,186.21,186.2,3.32887142]
[1760867094376,5.36999248,186.22,186.2,3.32887142]
[1760867094586,5.36968407,186.24,186.21,3.32887142]
[1760867094885,5.36968407,186.24,186.23,3.32887142]
[1760867095178,34.00968407,186.24,186.23,3.32887142]
[1760867095678,28.64,186.24,186.23,3.32887142]
[1760867095871,28.62,186.24,186.23,3.32887142]
[1760867096460,5.36915556,186.25,186.23,3.32887142]
[1760867096656,5.36915556,186.25,186.19,5.37081868]
[1760867096657,0.72,186.29,186.24,3.32887142]
[1760867096964,0.72,186.29,186.28,3.32887142]
[1760867097279,29.32,186.29,186.21,4.5458995]
[1760867097582,0.72,186.29,186.28,3.32887142]
[1760867097779,29.32,186.29,186.28,3.32887142]
[1760867097982,6.08797466,186.29,186.28,3.32887142]
[1760867098190,34.68797466,186.29,186.19,5.37085772]
[1760867098481,29.32,186.28,186.25,3.32887142]
[1760867098673,0.72,186.28,186.25,3.32887142]
[1760867098884,29.32,186.27,186.25,3.32887142]
[1760867099085,28.6,186.27,186.26,3.32887142]
[1760867099283,28.58,186.27,186.26,3.32887142]
[1760867100186,28.56,186.27,186.23,5.36949817]
[1760867100564,28.56,186.27,186.26,3.32887142]
[1760867100982,29.28,186.27,186.19,0.68]
[1760867101198,29.28,186.27,186.16,13.42862639]
[1760867101199,105.42887142,186.26,186.21,3.32887142]
[1760867101360,3.32887142,186.23,186.13,0.68]
[1760867101565,3.32887142,186.21,186.15,3.32887142]
[1760867101791,4.04887142,186.2,186.1,6.05341871]
[1760867101998,5.3711462,186.18,186.13,3.32887142]
[1760867102286,29.26,186.17,186.12,3.32887142]
[1760867102474,29.26,186.16,186.13,3.32887142]
[1760867102686,28.54,186.16,186.11,0.68]
[1760867102891,28.54,186.16,186.15,3.32887142]
[1760867103090,5.3711462,186.18,186.15,3.32887142]
[1760867103287,28.54,186.17,186.15,3.32887142]
[1760867103599,6.09155255,186.17,186.15,3.32887142]
[1760867103799,6.09155255,186.17,186.08,13.43508168]
[1760867103800,0.72,186.22,186.16,3.32887142]
[1760867104002,0.72,186.22,186.12,3.32887142]
[1760867104003,5.36944617,186.24,186.21,3.32887142]
[1760867104302,5.36800352,186.29,186.23,3.32887142]
[1760867104491,0.72,186.31,186.28,3.32887142]
[1760867104672,0.72,186.3,186.28,3.32887142]
[1760867104873,28.56,186.29,186.22,1.21699924]
[1760867105104,6.0868223,186.33,186.28,3.32887142]
[1760867105312,0.72,186.36,186.32,3.32887142]
[1760867105601,0.1,186.38,186.35,3.32887142]
[1760867105801,28.56,186.37,186.36,3.32887142]
[1760867106304,0.1,186.38,186.31,1.21673984]
[1760867106482,0.1,186.38,186.37,3.32887142]
[1760867106672,28.64,186.38,186.37,3.32887142]
[1760867106876,0.1,186.38,186.37,3.32887142]
[1760867107288,0.1,186.38,186.31,0.53673984]
[1760867107479,0.82,186.38,186.37,3.32887142]
[1760867107694,0.1,186.38,186.37,3.32887142]
[1760867108010,28.62,186.38,186.37,3.32887142]
[1760867108894,0.1,186.38,186.37,3.32887142]
[1760867109073,0.82,186.38,186.32,0.53671103]
[1760867109279,3.32887142,186.36,186.22,24.30121285]
[1760867109589,18.78690283,186.3,186.18,0.68]
[1760867109788,29.24,186.29,186.24,3.32887142]
[1760867110099,5.36768652,186.3,186.19,5.3705785]
[1760867110100,29.24,186.28,186.26,3.32887142]
[1760867110302,29.24,186.27,186.24,3.32887142]
[1760867110476,5.36768652,186.3,186.26,3.32887142]
[1760867110682,29.22,186.29,186.27,3.32887142]
[1760867110882,5.36740919,186.31,186.28,3.32887142]
[1760867111083,34.58740919,186.31,186.29,3.32887142]
[1760867111504,34.58740919,186.31,186.23,1.21697041]
[1760867111505,28.5,186.31,186.3,3.32887142]
[1760867111683,5.36687441,186.33,186.3,3.32887142]
[1760867111884,28.5,186.34,186.32,3.32887142]
[1760867112103,28.5,186.34,186.33,3.32887142]
[1760867112410,29.2,186.34,186.33,3.32887142]
[1760867112709,28.5,186.34,186.33,3.32887142]
[1760867112897,28.5,186.34,186.3,3.32887142]
[1760867112898,34.56656983,186.34,186.3,3.32887142]
[1760867113095,0.7,186.33,186.3,3.32887142]
[1760867113297,0.7,186.32,186.29,3.32887142]
[1760867113503,0.7,186.31,186.29,3.32887142]
[1760867113818,28.46,186.3,186.24,14.62048109]
[1760867114115,6.06656983,186.34,186.22,5.36999248]
[1760867114116,29.18,186.31,186.22,5.36999248]
[1760867114319,29.18,186.31,186.18,13.42758326]
[1760867114320,0.72,186.3,186.18,13.42758326]
[1760867114486,0.72,186.29,186.19,5.37085772]
[1760867114685,0.72,186.28,186.18,5.37110861]
[1760867114996,32.50887142,186.27,186.21,3.32887142]
[1760867115317,28.46,186.26,186.25,3.32887142]
[1760867115882,29.18,186.26,186.25,3.32887142]
[1760867116194,28.46,186.28,186.21,0.66]
[1760867116495,28.46,186.28,186.2,5.37029414]
[1760867116496,28.46,186.28,186.25,3.32887142]
[1760867116690,0.72,186.27,186.25,3.32887142]
[1760867117102,0.72,186.26,186.24,3.32887142]
[1760867117309,0.72,186.26,186.17,13.42824204]
[1760867117310,0.72,186.25,186.19,5.37073643]
[1760867117506,28.44,186.24,186.13,0.5372589]
[1760867117715,18.79497368,186.22,186.12,3.32887142]
[1760867118011,4.04887142,186.21,186.14,3.32887142]
[1760867118310,5.36999248,186.22,186.19,3.32887142]
[1760867118513,28.44,186.21,186.19,3.32887142]
[1760867118815,28.44,186.21,186.2,3.32887142]
[1760867119523,29.16,186.21,186.11,1.19731664]
[1760867119729,28.46,186.2,186.18,3.32887142]
[1760867119918,28.46,186.2,186.19,3.32887142]
[1760867120123,29.16,186.2,186.19,3.32887142]
[1760867121218,28.44,186.2,186.19,3.32887142]
[1760867121731,34.53058589,186.2,186.18,3.32887142]
[1760867121931,34.53058589,186.2,186.12,17.29807967]
[1760867121932,34.53058589,186.2,186.12,0.53728777]
[1760867122224,33.81058589,186.2,186.12,5.91011593]
[1760867122405,33.81058589,186.2,186.19,3.32887142]
[1760867122609,0.72,186.24,186.19,3.32887142]
[1760867122809,25.74,186.23,186.2,3.32887142]
[1760867123030,25.74,186.22,186.2,3.32887142]
[1760867123225,0.72,186.21,186.2,3.32887142]
[1760867123419,0.72,186.21,186.19,3.32887142]
[1760867123620,25.02,186.22,186.2,3.32887142]
[1760867123928,31.10999248,186.22,186.21,3.32887142]
[1760867124433,31.10999248,186.22,186.2,3.32887142]
[1760867125126,0.72,186.21,186.2,3.32887142]
[1760867125312,30.38999248,186.22,186.2,3.32887142]
[1760867125518,31.10999248,186.22,186.2,3.32887142]
[1760867125716,102.1,186.24,186.21,3.32887142]
[1760867125918,102.1,186.24,186.23,3.32887142]
[1760867126313,130.48,186.24,186.23,3.32887142]
[1760867126511,28.38,186.27,186.23,3.32887142]
[1760867126723,0.72,186.26,186.16,0.66]
[1760867126930,0.72,186.26,186.21,3.32887142]
[1760867127227,6.08912751,186.25,186.21,3.32887142]
[1760867127409,0.72,186.24,186.21,3.32887142]
[1760867127610,29.14,186.23,186.21,3.32887142]
[1760867127834,28.42,186.23,186.21,3.32887142]
[1760867128015,29.14,186.23,186.21,3.32887142]
[1760867128418,28.4,186.22,186.21,3.32887142]
[1760867128719,0.72,186.25,186.21,3.32887142]
[1760867128918,6.08927994,186.25,186.24,3.32887142]
[1760867129113,34.48927994,186.25,186.24,3.32887142]
[1760867129313,33.76927994,186.25,186.24,3.32887142]
[1760867129821,34.48927994,186.25,186.23,3.32887142]
[1760867130019,0.72,186.24,186.21,3.32887142]
[1760867130218,0.72,186.23,186.21,3.32887142]
[1760867130423,6.08976282,186.23,186.22,3.32887142]
[1760867131118,6.08976282,186.23,186.17,5.37130705]
[1760867131320,6.08976282,186.23,186.21,3.32887142]
[1760867131938,0.72,186.22,186.15,5.37194997]
[1760867132122,28.36,186.21,186.15,5.37194997]
[1760867132437,28.36,186.21,186.2,3.32887142]
[1760867133538,28.36,186.21,186.15,6.03194997]
[1760867133744,29.08,186.21,186.19,3.32887142]
[1760867133929,0.72,186.2,186.19,3.32887142]
[1760867134123,0.72,186.2,186.16,3.32887142]
[1760867134327,0.72,186.2,186.1,0.2]
[1760867134328,0.72,186.19,186.1,0.2]
[1760867134638,4.04887142,186.19,186.13,3.32887142]
[1760867134826,28.34,186.18,186.16,3.32887142]
[1760867135021,33.71128318,186.18,186.16,3.32887142]
[1760867135519,0.72,186.17,186.15,3.32887142]
[1760867135924,0.72,186.16,186.14,3.32887142]
[1760867136538,0.72,186.15,186.14,3.32887142]
[1760867136738,0.72,186.17,186.13,3.32887142]
[1760867136945,0.72,186.16,186.13,3.32887142]
[1760867137123,6.09189772,186.16,186.14,3.32887142]
[1760867137327,5.37189772,186.16,186.14,3.32887142]
[1760867137935,5.3714404,186.17,186.15,3.32887142]
[1760867138443,6.0914404,186.17,186.15,3.32887142]
[1760867138642,6.0914404,186.17,186.11,0.66]
[1760867138944,28.32,186.16,186.11,0.66]
[1760867139122,6.0914404,186.17,186.15,3.32887142]
[1760867139426,28.3,186.16,186.14,3.32887142]
[1760867139633,28.3,186.16,186.15,3.32887142]
[1760867140426,5.36912751,186.25,186.15,3.98887142]
[1760867140636,5.36912751,186.25,186.16,1.19717232]
[1760867140824,29.02,186.24,186.2,3.32887142]
[1760867141144,0.72,186.23,186.19,3.32887142]
[1760867141441,6.08999248,186.22,186.19,3.32887142]
[1760867141746,29.02,186.21,186.12,8.70170176]
[1760867141956,29.02,186.21,186.17,3.32887142]
[1760867142242,0.72,186.2,186.17,3.32887142]
[1760867142451,4.04887142,186.19,186.14,3.32887142]
[1760867142631,0.72,186.18,186.13,3.32887142]
[1760867142833,29.02,186.17,186.13,3.32887142]
[1760867143053,29.02,186.16,186.13,3.32887142]
[1760867143238,28.3,186.15,186.13,3.32887142]
[1760867143441,34.39223861,186.15,186.13,3.32887142]
[1760867143747,33.67223861,186.15,186.14,3.32887142]
[1760867144333,34.39223861,186.15,186.11,3.32887142]
[1760867144650,0.72,186.14,186.11,3.32887142]
[1760867145040,0.72,186.13,186.11,3.32887142]
[1760867145344,28.28,186.12,186.11,3.32887142]
[1760867146457,5.3726068,186.13,186.11,3.32887142]
[1760867146458,28.28,186.13,186.11,3.32887142]
[1760867146660,28.28,186.13,186.12,3.32887142]
[1760867147174,28.28,186.13,186.1,0.2]
[1760867147344,28.28,186.13,186.12,3.32887142]
[1760867148571,34.37258905,186.13,186.12,3.32887142]
[1760867148870,28.28,186.13,186.12,3.32887142]
[1760867151254,28.28,186.13,186.1,0.2]
[1760867151555,29.0,186.13,186.1,0.2]
[1760867151737,29.0,186.13,186.12,3.32887142]
[1760867151937,34.37258905,186.13,186.12,3.32887142]
[1760867152345,34.37258905,186.13,186.1,0.2]
[1760867152550,33.65258905,186.13,186.1,0.2]
[1760867152784,0.72,186.12,186.1,0.2]
[1760867153151,0.72,186.11,186.1,0.2]
[1760867153664,6.0931664,186.11,186.1,0.2]
[1760867154668,5.3731664,186.11,186.1,0.2]
[1760867155258,6.0931664,186.11,186.1,0.2]
[1760867155677,5.37287771,186.12,186.1,0.2]
[1760867155972,6.09287771,186.12,186.1,0.2]
[1760867156364,0.72,186.11,186.1,0.2]
[1760867156970,0.72,186.14,186.1,3.52887142]
[1760867157172,28.28,186.13,186.1,3.52887142]
[1760867157472,29.0,186.13,186.11,3.32887142]
[1760867157851,28.28,186.13,186.12,3.32887142]
[1760867158667,29.0,186.13,186.12,3.32887142]
[1760867159078,34.37258905,186.13,186.12,3.32887142]
[1760867159254,6.09258905,186.13,186.12,3.32887142]
[1760867159454,34.37258905,186.13,186.11,3.32887142]
[1760867159774,0.72,186.12,186.11,3.32887142]
[1760867159972,33.65258905,186.13,186.11,3.32887142]
[1760867160278,34.37258905,186.13,186.11,3.32887142]
[1760867160472,33.65258905,186.13,186.12,3.32887142]
[1760867160970,102.1,186.16,186.12,3.32887142]
[1760867161156,108.19172324,186.16,186.15,3.32887142]
[1760867161467,130.38,186.16,186.15,3.32887142]
[1760867161677,13.42632156,186.21,186.15,3.98887142]
[1760867161854,13.42424482,186.24,186.16,0.53717232]
[1760867162054,33.64970412,186.23,186.22,3.32887142]
[1760867162257,34.36970412,186.23,186.2,3.32887142]
[1760867162456,0.72,186.22,186.2,3.32887142]
[1760867162657,4.04887142,186.21,186.11,0.66]
[1760867162875,51.16,186.2,186.15,3.32887142]
[1760867163053,5.3711462,186.18,186.15,3.32887142]
[1760867163259,29.0,186.17,186.1,0.2]
[1760867163452,29.0,186.17,186.15,3.32887142]
[1760867163650,0.72,186.24,186.16,3.98887142]
[1760867163880,14.14426032,186.23,186.19,3.32887142]
[1760867164176,29.0,186.22,186.19,3.32887142]
[1760867164363,0.72,186.21,186.19,3.32887142]
[1760867164559,0.72,186.2,186.18,3.32887142]
[1760867164765,29.0,186.19,186.17,3.32887142]
[1760867164954,28.28,186.18,186.17,3.32887142]
[1760867166280,33.6511462,186.18,186.17,3.32887142]
[1760867166474,14.14576896,186.21,186.17,3.32887142]
[1760867166686,28.28,186.2,186.15,0.66]
[1760867166883,5.36970412,186.23,186.19,3.32887142]
[1760867167190,5.36970412,186.23,186.21,3.32887142]
[1760867167191,28.28,186.22,186.21,3.32887142]
[1760867167358,33.64999248,186.22,186.2,3.32887142]
[1760867167753,34.36999248,186.22,186.21,3.32887142]
[1760867167985,33.64999248,186.22,186.21,3.32887142]
[1760867168186,0.72,186.24,186.21,3.32887142]
[1760867168389,0.72,186.26,186.23,3.32887142]
[1760867168561,0.72,186.25,186.23,3.32887142]
[1760867168882,5.36883925,186.26,186.24,3.32887142]
[1760867169082,30.8397636,186.3,186.25,3.32887142]
[1760867169265,6.08799904,186.29,186.27,3.32887142]
[1760867169582,0.72,186.28,186.26,3.32887142]
[1760867170084,29.0,186.27,186.16,5.37172324]
[1760867170390,0.72,186.26,186.22,3.32887142]
[1760867170686,6.08799904,186.29,186.25,3.32887142]
[1760867170873,28.28,186.28,186.26,3.32887142]
[1760867171185,28.28,186.27,186.26,3.32887142]
[1760867171492,34.36855102,186.27,186.25,3.32887142]
[1760867172181,5.36855102,186.27,186.26,3.32887142]
[1760867172388,34.36855102,186.27,186.25,3.32887142]
[1760867172574,6.08855102,186.27,186.25,3.32887142]
[1760867172780,28.28,186.26,186.25,3.32887142]
[1760867173885,47.75093739,186.26,186.11,5.37316614]
[1760867174091,0.68,186.25,186.19,3.32887142]
[1760867174259,5.36883925,186.26,186.24,3.32887142]
[1760867174580,5.36826283,186.28,186.25,3.32887142]
[1760867174784,5.36826283,186.28,186.27,3.32887142]
[1760867174962,33.62826283,186.28,186.27,3.32887142]
[1760867175280,33.62826283,186.28,186.16,0.53717232]
[1760867175281,51.05779132,186.28,186.16,0.53717232]
[1760867175480,18.79093739,186.26,186.22,3.32887142]
[1760867175684,28.94,186.25,186.23,3.32887142]
[1760867176059,28.26,186.24,186.23,3.32887142]
[1760867176258,5.36883925,186.26,186.23,3.32887142]
[1760867176484,28.26,186.25,186.23,0.7]
[1760867176888,102.1,186.27,186.23,0.7]
[1760867177567,28.26,186.26,186.23,0.7]
[1760867177768,28.26,186.26,186.25,3.32887142]
[1760867178592,102.1,186.27,186.25,3.32887142]
[1760867178789,28.26,186.28,186.26,3.32887142]
[1760867178990,17.42,186.3,186.27,3.32887142]
[1760867179166,17.42,186.3,186.25,0.7]
[1760867179167,17.42,186.3,186.29,3.32887142]
[1760867179571,102.1,186.34,186.29,4.01887142]
[1760867179792,5.36567044,186.37,186.3,0.69]
[1760867179993,28.98,186.36,186.25,0.53691275]
[1760867180182,32.30887142,186.36,186.3,3.32887142]
[1760867180384,0.72,186.35,186.31,3.32887142]
[1760867180594,0.72,186.34,186.31,3.32887142]
[1760867180781,28.98,186.33,186.3,3.32887142]
[1760867180979,0.72,186.33,186.29,3.32887142]
[1760867181282,28.98,186.32,186.29,3.32887142]
[1760867181483,6.08741964,186.31,186.3,3.32887142]
[1760867181683,34.34741964,186.31,186.25,5.36907761]
[1760867181884,34.34741964,186.31,186.29,3.32887142]
[1760867182085,6.08741964,186.31,186.29,3.32887142]
[1760867182389,28.26,186.3,186.29,3.32887142]
[1760867182585,0.72,186.31,186.29,3.32887142]
[1760867182788,5.36595836,186.36,186.3,7.34774284]
[1760867183003,0.82,186.38,186.35,3.32887142]
[1760867183190,28.98,186.37,186.35,3.32887142]
[1760867183500,28.98,186.36,186.35,3.32887142]
[1760867183702,28.26,186.36,186.35,3.32887142]
[1760867184198,5.46565839,186.38,186.35,3.32887142]
[1760867184405,28.26,186.37,186.32,0.69]
[1760867184605,5.46565839,186.38,186.32,6.05705021]
[1760867184606,28.26,186.36,186.32,6.05705021]
[1760867184901,0.1,186.38,186.33,0.69]
[1760867185098,0.1,186.38,186.34,0.69]
[1760867185285,28.36,186.38,186.34,0.69]
[1760867185488,28.36,186.38,186.37,3.32887142]
[1760867185679,28.36,186.38,186.3,3.32887142]
[1760867185680,29.08,186.38,186.29,0.69]
[1760867185884,28.26,186.37,186.34,3.32887142]
[1760867186088,28.98,186.37,186.34,3.32887142]
[1760867186285,0.72,186.36,186.34,3.32887142]
[1760867186806,28.24,186.37,186.35,3.32887142]
[1760867187180,28.24,186.37,186.36,3.32887142]
[1760867187708,5.46538255,186.38,186.31,0.69]
[1760867187906,5.46538255,186.38,186.37,3.32887142]
[1760867188689,5.46538255,186.38,186.36,3.32887142]
[1760867188894,6.18538255,186.38,186.36,3.32887142]
[1760867189110,5.46538255,186.38,186.37,3.32887142]
[1760867189315,0.1,186.38,186.37,3.32887142]
[1760867189804,0.1,186.38,186.36,3.32887142]
[1760867190405,0.1,186.38,186.37,3.32887142]
[1760867191221,6.18547727,186.38,186.34,3.32887142]
[1760867191397,6.18547727,186.38,186.35,3.32887142]
[1760867191598,6.18547727,186.38,186.36,3.32887142]
[1760867191800,34.42547727,186.38,186.36,3.32887142]
[1760867192528,5.46547727,186.38,186.37,3.32887142]
[1760867192717,34.42547727,186.38,186.37,3.32887142]
[1760867193118,28.34,186.38,186.37,3.32887142]
[1760867193306,0.1,186.38,186.37,3.32887142]
[1760867194114,0.1,186.38,186.37,4.01887142]
[1760867194424,0.1,186.38,186.37,9.38454186]
[1760867194632,0.1,186.38,186.37,12.71341328]
[1760867198923,0.1,186.38,186.37,23.58988849]
[1760867199137,0.1,186.45,186.38,10.87647521]
[1760867199305,0.1,186.45,186.44,26.20887142]
[1760867199505,0.1,186.48,186.44,26.20887142]
[1760867199712,0.72,186.58,186.47,17.53421805]
[1760867199907,0.72,186.66,186.57,6.65774284]
[1760867200105,0.72,186.66,186.64,3.32887142]
[1760867200306,16.71910691,186.71,186.58,0.53596312]
[1760867200307,0.72,186.65,186.58,0.53596312]
[1760867200530,0.72,186.65,186.63,3.32887142]
[1760867200721,0.72,186.64,186.59,5.35931668]
[1760867201028,0.72,186.66,186.59,6.33525108]
[1760867201222,6.07677406,186.68,186.6,0.44]
[1760867201807,6.07677406,186.68,186.66,3.32887142]
[1760867202018,0.72,186.67,186.66,3.32887142]
[1760867202212,0.72,186.67,186.6,0.53590568]
[1760867202440,0.72,186.76,186.67,10.87647521]
[1760867202617,0.72,186.76,186.74,3.32887142]
[1760867202942,0.72,186.79,186.75,3.32887142]
[1760867203175,0.72,186.78,186.68,0.53567602]
[1760867203433,0.72,186.78,186.74,3.32887142]
[1760867203618,0.72,186.78,186.68,0.53567602]
[1760867203619,0.72,186.77,186.68,0.53567602]
[1760867203816,0.22,186.77,186.75,3.32887142]
[1760867204138,3.32887142,186.8,186.68,0.53567602]
[1760867204345,1.99999999,186.89,186.79,3.32887142]
[1760867204649,18.79722466,186.85,186.81,3.32887142]
[1760867205014,18.79722466,186.85,186.76,1.20544656]
[1760867205318,32.17694101,186.85,186.76,0.53544656]
[1760867205520,32.17694101,186.85,186.73,0.53553258]
[1760867206026,3.99887142,186.84,186.72,0.53556126]
[1760867206229,3.32887142,186.81,186.74,3.32887142]
[1760867206415,5.35360565,186.79,186.77,3.32887142]
[1760867206614,28.87,186.78,186.7,0.67]
[1760867206816,0.67,186.78,186.77,3.32887142]
[1760867207033,0.67,186.78,186.7,0.67]
[1760867207034,0.67,186.78,186.71,0.53558995]
[1760867207234,0.67,186.78,186.74,3.32887142]
[1760867207433,0.67,186.77,186.73,3.32887142]
[1760867207648,28.87,186.76,186.73,3.32887142]
[1760867207947,28.87,186.75,186.71,3.32887142]
[1760867208139,0.67,186.74,186.71,3.32887142]
[1760867208345,28.87,186.73,186.66,3.86460483]
[1760867208561,33.55551241,186.73,186.72,3.32887142]
[1760867209765,6.02551241,186.73,186.72,3.32887142]
[1760867209956,6.02551241,186.73,186.71,3.32887142]
[1760867210262,0.67,186.72,186.7,3.32887142]
[1760867210561,5.35551241,186.73,186.66,3.86460483]
[1760867210562,5.35551241,186.73,186.71,3.32887142]
[1760867210764,5.35551241,186.73,186.72,3.32887142]
[1760867211635,6.02551241,186.73,186.66,0.53573341]
[1760867211838,6.02551241,186.73,186.69,3.32887142]
[1760867212041,28.85,186.72,186.63,0.53581953]
[1760867212269,0.67,186.72,186.67,3.32887142]
[1760867212437,14.05648102,186.76,186.71,3.32887142]
[1760867212642,5.35447851,186.76,186.74,3.32887142]
[1760867213155,33.53447851,186.76,186.74,3.32887142]
[1760867213469,0.67,186.75,186.73,3.32887142]
[1760867213654,0.67,186.74,186.71,3.32887142]
[1760867213853,28.85,186.73,186.71,3.32887142]
[1760867214050,0.67,186.72,186.63,1.20581953]
[1760867214554,33.53589952,186.71,186.7,3.32887142]
[1760867214741,34.20589952,186.71,186.7,3.32887142]
[1760867214941,28.18,186.71,186.7,3.32887142]
[1760867215345,0.67,186.71,186.63,0.53581953]
[1760867215550,0.67,186.71,186.66,3.32887142]
[1760867215768,0.67,186.71,186.61,0.53587696]
[1760867215769,0.67,186.7,186.68,3.32887142]
[1760867216267,18.74471184,186.72,186.68,3.32887142]
[1760867216441,19.41471184,186.72,186.7,3.32887142]
[1760867216860,28.85,186.71,186.7,3.32887142]
[1760867217176,28.85,186.71,186.68,3.32887142]
[1760867217339,28.85,186.7,186.68,3.32887142]
[1760867217543,28.18,186.69,186.68,3.32887142]
[1760867217738,28.85,186.69,186.6,0.53590568]
[1760867217966,28.18,186.68,186.65,3.32887142]
[1760867218187,28.18,186.67,186.65,3.32887142]
[1760867218468,28.18,186.67,186.63,3.32887142]
[1760867218469,28.85,186.67,186.63,3.32887142]
[1760867218670,5.35733419,186.66,186.63,3.32887142]
[1760867218849,13.39223277,186.68,186.6,0.67]
[1760867218850,5.3570449,186.68,186.65,3.32887142]
[1760867219049,28.18,186.67,186.6,1.20590568]
[1760867219252,28.18,186.67,186.59,5.35919368]
[1760867219253,28.18,186.67,186.59,0.5359344]
[1760867219447,0.67,186.66,186.57,4.53486327]
[1760867219759,0.67,186.65,186.57,9.89473148]
[1760867219955,28.18,186.67,186.53,13.40228861]
[1760867219956,0.67,186.64,186.53,0.53610679]
[1760867220158,3.32887142,186.63,186.51,0.53616428]
[1760867220361,0.67,186.62,186.56,3.32887142]
[1760867220563,0.67,186.66,186.61,3.32887142]
[1760867220771,0.67,186.65,186.63,3.32887142]
[1760867220974,28.85,186.64,186.57,0.67]
[1760867221268,28.18,186.63,186.53,0.67]
[1760867221564,28.18,186.65,186.62,3.32887142]
[1760867221744,0.67,186.64,186.61,3.32887142]
[1760867221942,0.67,186.63,186.6,3.32887142]
[1760867222142,28.85,186.62,186.56,3.32887142]
[1760867222354,0.67,186.72,186.61,3.32887142]
[1760867222556,5.35618639,186.7,186.66,3.32887142]
[1760867222771,0.67,186.69,186.66,3.32887142]
[1760867222953,0.67,186.68,186.66,3.32887142]
[1760867223151,28.22,186.67,186.66,3.32887142]
[1760867223972,28.89,186.67,186.6,0.53590568]
[1760867224275,0.67,186.66,186.62,3.32887142]
[1760867224448,0.67,186.65,186.62,3.32887142]
[1760867224648,0.67,186.65,186.52,33.75647521]
[1760867224649,34.22790827,186.64,186.6,3.32887142]
[1760867224851,0.67,186.63,186.58,3.32887142]
[1760867225071,28.89,186.62,186.55,3.32887142]
[1760867225249,0.67,186.61,186.49,0.53622178]